Department family,Entity,Date,Expense type,Expense area,Supplier,Transaction number,Amount
Department of Health,Leicestershire Partnership NHS Trust,01/08/23,Lease Rents (IFRS16),"St Peters Health Center (Part 1st and 2nd floors) (P66, LPT)",LEICESTER LIFT CO,LEP1-SI1319,34244.84
Department of Health,Leicestershire Partnership NHS Trust,01/08/23,ANCILLIARY - AGENCY,"Beaumont Leys Health Centre (P94, LPT)",BLOOM PROC SERV LTD,SIN044783,8457.12
Department of Health,Leicestershire Partnership NHS Trust,01/08/23,ANCILLIARY - AGENCY,"Bradgate Unit (including Glenvale day Unit) (P7, LPT)",BLOOM PROC SERV LTD,SIN044783,16687.62
Department of Health,Leicestershire Partnership NHS Trust,01/08/23,ANCILLIARY - AGENCY,"Coalville Community Hospital (P138, LPT)",BLOOM PROC SERV LTD,SIN044783,15185.86
Department of Health,Leicestershire Partnership NHS Trust,01/08/23,ANCILLIARY - AGENCY,"Evington Centre (P6, LPT)",BLOOM PROC SERV LTD,SIN044783,12794.45
Department of Health,Leicestershire Partnership NHS Trust,01/08/23,ANCILLIARY - AGENCY,Facilities Team,BLOOM PROC SERV LTD,SIN044783,34928.15
Department of Health,Leicestershire Partnership NHS Trust,01/08/23,ANCILLIARY - AGENCY,"Hinckley and Bosworth Community Hospital (Sunnyside) (P133, LPT)",BLOOM PROC SERV LTD,SIN044783,6058.98
Department of Health,Leicestershire Partnership NHS Trust,01/08/23,ANCILLIARY - AGENCY,"Loughborough Hospital (P136, LPT)",BLOOM PROC SERV LTD,SIN044783,9191.70
Department of Health,Leicestershire Partnership NHS Trust,01/08/23,ANCILLIARY - AGENCY,Meridian (EFM Base),BLOOM PROC SERV LTD,SIN044783,3942.11
Department of Health,Leicestershire Partnership NHS Trust,01/08/23,ANCILLIARY - AGENCY,"Springfield Road Health Centre (P92, LPT)",BLOOM PROC SERV LTD,SIN044783,685.44
Department of Health,Leicestershire Partnership NHS Trust,01/08/23,ANCILLIARY - AGENCY,"Stewart House (P61, LPT)",BLOOM PROC SERV LTD,SIN044783,2237.76
Department of Health,Leicestershire Partnership NHS Trust,01/08/23,ANCILLIARY - AGENCY,"The Agnes Unit (AKA Assessment and Treatment Centre) (P85, LPT)",BLOOM PROC SERV LTD,SIN044783,9006.48
Department of Health,Leicestershire Partnership NHS Trust,01/08/23,ANCILLIARY - AGENCY,The Beacon,BLOOM PROC SERV LTD,SIN044783,1955.40
Department of Health,Leicestershire Partnership NHS Trust,02/08/23,Healthcare Services / Recharges from Non-NHS Bodies,Adult Eating Disorder Collaborative,PRIORY GROUP,301JULY23LEC,41367.55
Department of Health,Leicestershire Partnership NHS Trust,02/08/23,Payroll Deductions -Salary Sacrifice Cars Scheme,Balance Sheet Collection,TUSKER,79237,43881.70
Department of Health,Leicestershire Partnership NHS Trust,03/08/23,Nurse - Band 6 -Agency,CAMHS Waiting List Monies,HCL WORKFORCE SOLUTIONS,HWSI0001861,13840.62
Department of Health,Leicestershire Partnership NHS Trust,03/08/23,Nurse - Band 6 -Agency,Crisis Response and Home Treatment,HCL WORKFORCE SOLUTIONS,HWSI0001861,8816.47
Department of Health,Leicestershire Partnership NHS Trust,03/08/23,Nurse - Band 7 - Agency,Crisis Response and Home Treatment,HCL WORKFORCE SOLUTIONS,HWSI0001861,1368.75
Department of Health,Leicestershire Partnership NHS Trust,03/08/23,Nurse - Band 6 -Agency,AMH - Central Access Point,HCL NURSING,HNSI0001410,3145.28
Department of Health,Leicestershire Partnership NHS Trust,03/08/23,Nurse - Band 7 - Agency,Adult County- East Leicester CMHT,HCL NURSING,HNSI0001410,1014.60
Department of Health,Leicestershire Partnership NHS Trust,03/08/23,NURSE - BAND 2 - AGENCY,Agnes Unit,HCL NURSING,HNSI0001410,29043.11
Department of Health,Leicestershire Partnership NHS Trust,03/08/23,NURSE - BAND 5 - AGENCY,Agnes Unit,HCL NURSING,HNSI0001410,26260.07
Department of Health,Leicestershire Partnership NHS Trust,03/08/23,Nurse - Band 7 - Agency,Agnes Unit,HCL NURSING,HNSI0001410,1626.76
Department of Health,Leicestershire Partnership NHS Trust,03/08/23,NURSE - BAND 2 - AGENCY,Ashby Ward (Bradgate Unit),HCL NURSING,HNSI0001410,817.61
Department of Health,Leicestershire Partnership NHS Trust,03/08/23,NURSE - BAND 5 - AGENCY,Ashby Ward (Bradgate Unit),HCL NURSING,HNSI0001410,11791.18
Department of Health,Leicestershire Partnership NHS Trust,03/08/23,NURSE - BAND 2 - AGENCY,Aston Ward Bradgate Unit (Prev Welford),HCL NURSING,HNSI0001410,2258.39
Department of Health,Leicestershire Partnership NHS Trust,03/08/23,NURSE - BAND 5 - AGENCY,Aston Ward Bradgate Unit (Prev Welford),HCL NURSING,HNSI0001410,3099.26
Department of Health,Leicestershire Partnership NHS Trust,03/08/23,NURSE - BAND 2 - AGENCY,Beaumont Ward - Bradgate Unit,HCL NURSING,HNSI0001410,2758.65
Department of Health,Leicestershire Partnership NHS Trust,03/08/23,NURSE - BAND 5 - AGENCY,Beaumont Ward - Bradgate Unit,HCL NURSING,HNSI0001410,9485.07
Department of Health,Leicestershire Partnership NHS Trust,03/08/23,NURSE - BAND 2 - AGENCY,Belvoir Psychiatric Intensive Care Unit,HCL NURSING,HNSI0001410,2648.11
Department of Health,Leicestershire Partnership NHS Trust,03/08/23,NURSE - BAND 5 - AGENCY,Belvoir Psychiatric Intensive Care Unit,HCL NURSING,HNSI0001410,3473.16
Department of Health,Leicestershire Partnership NHS Trust,03/08/23,NURSE - BAND 2 - AGENCY,Bosworth Ward - Bradgate Unit,HCL NURSING,HNSI0001410,454.00
Department of Health,Leicestershire Partnership NHS Trust,03/08/23,NURSE - BAND 5 - AGENCY,Bosworth Ward - Bradgate Unit,HCL NURSING,HNSI0001410,6390.14
Department of Health,Leicestershire Partnership NHS Trust,03/08/23,NURSE - BAND 2 - AGENCY,Cedar (Willows),HCL NURSING,HNSI0001410,1587.35
Department of Health,Leicestershire Partnership NHS Trust,03/08/23,NURSE - BAND 5 - AGENCY,Cedar (Willows),HCL NURSING,HNSI0001410,1229.56
Department of Health,Leicestershire Partnership NHS Trust,03/08/23,Nurse - Band 6 -Agency,City West CMHT MHSOP,HCL NURSING,HNSI0001410,1046.25
Department of Health,Leicestershire Partnership NHS Trust,03/08/23,NURSE - BAND 2 - AGENCY,Coleman Ward,HCL NURSING,HNSI0001410,2693.84
Department of Health,Leicestershire Partnership NHS Trust,03/08/23,NURSE - BAND 5 - AGENCY,Coleman Ward,HCL NURSING,HNSI0001410,964.54
Department of Health,Leicestershire Partnership NHS Trust,03/08/23,NURSE - BAND 2 - AGENCY,Griffin Ward (HPC),HCL NURSING,HNSI0001410,2157.79
Department of Health,Leicestershire Partnership NHS Trust,03/08/23,NURSE - BAND 5 - AGENCY,Griffin Ward (HPC),HCL NURSING,HNSI0001410,4285.47
Department of Health,Leicestershire Partnership NHS Trust,03/08/23,NURSE - BAND 2 - AGENCY,Gwendolen Ward,HCL NURSING,HNSI0001410,2473.31
Department of Health,Leicestershire Partnership NHS Trust,03/08/23,NURSE - BAND 5 - AGENCY,Gwendolen Ward,HCL NURSING,HNSI0001410,329.84
Department of Health,Leicestershire Partnership NHS Trust,03/08/23,NURSE - BAND 2 - AGENCY,Heather Ward,HCL NURSING,HNSI0001410,607.61
Department of Health,Leicestershire Partnership NHS Trust,03/08/23,NURSE - BAND 5 - AGENCY,Heather Ward,HCL NURSING,HNSI0001410,4468.65
Department of Health,Leicestershire Partnership NHS Trust,03/08/23,NURSE - BAND 2 - AGENCY,Kirby Ward,HCL NURSING,HNSI0001410,5031.12
Department of Health,Leicestershire Partnership NHS Trust,03/08/23,NURSE - BAND 5 - AGENCY,Kirby Ward,HCL NURSING,HNSI0001410,2566.76
Department of Health,Leicestershire Partnership NHS Trust,03/08/23,NURSE - BAND 2 - AGENCY,Maple Ward,HCL NURSING,HNSI0001410,860.82
Department of Health,Leicestershire Partnership NHS Trust,03/08/23,NURSE - BAND 5 - AGENCY,Maple Ward,HCL NURSING,HNSI0001410,874.95
Department of Health,Leicestershire Partnership NHS Trust,03/08/23,NURSE - BAND 2 - AGENCY,Mill Lodge,HCL NURSING,HNSI0001410,5237.07
Department of Health,Leicestershire Partnership NHS Trust,03/08/23,NURSE - BAND 5 - AGENCY,Mill Lodge,HCL NURSING,HNSI0001410,986.91
Department of Health,Leicestershire Partnership NHS Trust,03/08/23,NURSE - BAND 2 - AGENCY,Phoenix Ward (HPC),HCL NURSING,HNSI0001410,2120.97
Department of Health,Leicestershire Partnership NHS Trust,03/08/23,NURSE - BAND 5 - AGENCY,Phoenix Ward (HPC),HCL NURSING,HNSI0001410,4354.99
Department of Health,Leicestershire Partnership NHS Trust,03/08/23,NURSE - BAND 5 - AGENCY,Place Of Safety Assessment Unit,HCL NURSING,HNSI0001410,3996.50
Department of Health,Leicestershire Partnership NHS Trust,03/08/23,NURSE - BAND 2 - AGENCY,Stewart House,HCL NURSING,HNSI0001410,205.84
Department of Health,Leicestershire Partnership NHS Trust,03/08/23,NURSE - BAND 5 - AGENCY,Stewart House,HCL NURSING,HNSI0001410,986.91
Department of Health,Leicestershire Partnership NHS Trust,03/08/23,NURSE - BAND 2 - AGENCY,Sycamore (Willows),HCL NURSING,HNSI0001410,908.54
Department of Health,Leicestershire Partnership NHS Trust,03/08/23,NURSE - BAND 5 - AGENCY,Sycamore (Willows),HCL NURSING,HNSI0001410,1708.02
Department of Health,Leicestershire Partnership NHS Trust,03/08/23,NURSE - BAND 2 - AGENCY,The Grange,HCL NURSING,HNSI0001410,218.54
Department of Health,Leicestershire Partnership NHS Trust,03/08/23,NURSE - BAND 2 - AGENCY,Thornton Ward - Bradgate Unit,HCL NURSING,HNSI0001410,1704.48
Department of Health,Leicestershire Partnership NHS Trust,03/08/23,NURSE - BAND 5 - AGENCY,Thornton Ward - Bradgate Unit,HCL NURSING,HNSI0001410,2463.42
Department of Health,Leicestershire Partnership NHS Trust,03/08/23,WIP Project Not in BS - Buildings excl Dwellings,Work in Progress,TILBURY DOUGLAS CONSTRUCTION LTD,23080023,181375.21
Department of Health,Leicestershire Partnership NHS Trust,04/08/23,Unitary Payment,"The Agnes Unit (AKA Assessment and Treatment Centre) (P85, LPT)",ARDEN PARTNERSHIP (LEICESTER),SI0130,149114.44
Department of Health,Leicestershire Partnership NHS Trust,04/08/23,WIP Project Not in BS - Buildings excl Dwellings,Work in Progress,TILBURY DOUGLAS CONSTRUCTION LTD,23080068,40245.42
Department of Health,Leicestershire Partnership NHS Trust,04/08/23,WIP Project Not in BS - Buildings excl Dwellings,Work in Progress,TILBURY DOUGLAS CONSTRUCTION LTD,23080072,27299.46
Department of Health,Leicestershire Partnership NHS Trust,04/08/23,WIP Project Not in BS - Buildings excl Dwellings,Work in Progress,TILBURY DOUGLAS CONSTRUCTION LTD,23080073,65609.02
Department of Health,Leicestershire Partnership NHS Trust,04/08/23,WIP Project Not in BS - Buildings excl Dwellings,Work in Progress,TILBURY DOUGLAS CONSTRUCTION LTD,23080079,35622.67
Department of Health,Leicestershire Partnership NHS Trust,04/08/23,WIP Project Not in BS - Buildings excl Dwellings,Work in Progress,TILBURY DOUGLAS CONSTRUCTION LTD,23080081,96124.07
Department of Health,Leicestershire Partnership NHS Trust,04/08/23,WIP Project Not in BS - Buildings excl Dwellings,Work in Progress,TILBURY DOUGLAS CONSTRUCTION LTD,23080086,32955.97
Department of Health,Leicestershire Partnership NHS Trust,07/08/23,Healthcare Services / Recharges from Non-NHS Bodies,Adult Eating Disorder Collaborative,ELLERN MEDE MOORGATE,OTM0702,37200.00
Department of Health,Leicestershire Partnership NHS Trust,07/08/23,Crs_NHS_LT1y -Resus Inventory Supplied.,Balance Sheet Collection,SUPPLY CHAIN CO LTD,1124117741,28766.22
Department of Health,Leicestershire Partnership NHS Trust,07/08/23,Crs_NHS_LT1y -Resus Inventory Supplied.,Balance Sheet Collection,SUPPLY CHAIN CO LTD,1124124101,54240.03
Department of Health,Leicestershire Partnership NHS Trust,07/08/23,Med GP Trainees,Medical Trainees,MWL TEACHING HOSPITALS NHS TRUST,16823218.,75000.00
Department of Health,Leicestershire Partnership NHS Trust,08/08/23,Nurse - Band 6 -Agency,AMH - Central Access Point,HCL NURSING,HNSI0001414,3685.72
Department of Health,Leicestershire Partnership NHS Trust,08/08/23,Nurse - Band 7 - Agency,Adult County- East Leicester CMHT,HCL NURSING,HNSI0001414,1014.60
Department of Health,Leicestershire Partnership NHS Trust,08/08/23,NURSE - BAND 2 - AGENCY,Agnes Unit,HCL NURSING,HNSI0001414,28614.17
Department of Health,Leicestershire Partnership NHS Trust,08/08/23,NURSE - BAND 5 - AGENCY,Agnes Unit,HCL NURSING,HNSI0001414,22342.89
Department of Health,Leicestershire Partnership NHS Trust,08/08/23,Nurse - Band 7 - Agency,Agnes Unit,HCL NURSING,HNSI0001414,1573.84
Department of Health,Leicestershire Partnership NHS Trust,08/08/23,NURSE - BAND 2 - AGENCY,Ashby Ward (Bradgate Unit),HCL NURSING,HNSI0001414,912.29
Department of Health,Leicestershire Partnership NHS Trust,08/08/23,NURSE - BAND 5 - AGENCY,Ashby Ward (Bradgate Unit),HCL NURSING,HNSI0001414,10500.42
Department of Health,Leicestershire Partnership NHS Trust,08/08/23,NURSE - BAND 2 - AGENCY,Aston Ward Bradgate Unit (Prev Welford),HCL NURSING,HNSI0001414,1682.51
Department of Health,Leicestershire Partnership NHS Trust,08/08/23,NURSE - BAND 5 - AGENCY,Aston Ward Bradgate Unit (Prev Welford),HCL NURSING,HNSI0001414,2616.51
Department of Health,Leicestershire Partnership NHS Trust,08/08/23,NURSE - BAND 2 - AGENCY,Beaumont Ward - Bradgate Unit,HCL NURSING,HNSI0001414,1570.89
Department of Health,Leicestershire Partnership NHS Trust,08/08/23,NURSE - BAND 5 - AGENCY,Beaumont Ward - Bradgate Unit,HCL NURSING,HNSI0001414,8249.76
Department of Health,Leicestershire Partnership NHS Trust,08/08/23,NURSE - BAND 2 - AGENCY,Belvoir Psychiatric Intensive Care Unit,HCL NURSING,HNSI0001414,4297.15
Department of Health,Leicestershire Partnership NHS Trust,08/08/23,NURSE - BAND 5 - AGENCY,Belvoir Psychiatric Intensive Care Unit,HCL NURSING,HNSI0001414,5727.85
Department of Health,Leicestershire Partnership NHS Trust,08/08/23,NURSE - BAND 2 - AGENCY,Bosworth Ward - Bradgate Unit,HCL NURSING,HNSI0001414,411.68
Department of Health,Leicestershire Partnership NHS Trust,08/08/23,NURSE - BAND 5 - AGENCY,Bosworth Ward - Bradgate Unit,HCL NURSING,HNSI0001414,3811.34
Department of Health,Leicestershire Partnership NHS Trust,08/08/23,NURSE - BAND 2 - AGENCY,Cedar (Willows),HCL NURSING,HNSI0001414,441.65
Department of Health,Leicestershire Partnership NHS Trust,08/08/23,NURSE - BAND 5 - AGENCY,Cedar (Willows),HCL NURSING,HNSI0001414,283.64
Department of Health,Leicestershire Partnership NHS Trust,08/08/23,Nurse - Band 6 -Agency,City West CMHT MHSOP,HCL NURSING,HNSI0001414,1883.25
Department of Health,Leicestershire Partnership NHS Trust,08/08/23,NURSE - BAND 2 - AGENCY,Coleman Ward,HCL NURSING,HNSI0001414,2211.76
Department of Health,Leicestershire Partnership NHS Trust,08/08/23,NURSE - BAND 5 - AGENCY,Coleman Ward,HCL NURSING,HNSI0001414,2582.71
Department of Health,Leicestershire Partnership NHS Trust,08/08/23,NURSE - BAND 2 - AGENCY,Griffin Ward (HPC),HCL NURSING,HNSI0001414,1029.21
Department of Health,Leicestershire Partnership NHS Trust,08/08/23,NURSE - BAND 5 - AGENCY,Griffin Ward (HPC),HCL NURSING,HNSI0001414,4934.05
Department of Health,Leicestershire Partnership NHS Trust,08/08/23,NURSE - BAND 2 - AGENCY,Gwendolen Ward,HCL NURSING,HNSI0001414,205.84
Department of Health,Leicestershire Partnership NHS Trust,08/08/23,NURSE - BAND 5 - AGENCY,Gwendolen Ward,HCL NURSING,HNSI0001414,329.84
Department of Health,Leicestershire Partnership NHS Trust,08/08/23,NURSE - BAND 2 - AGENCY,Heather Ward,HCL NURSING,HNSI0001414,205.84
Department of Health,Leicestershire Partnership NHS Trust,08/08/23,NURSE - BAND 5 - AGENCY,Heather Ward,HCL NURSING,HNSI0001414,4959.55
Department of Health,Leicestershire Partnership NHS Trust,08/08/23,NURSE - BAND 2 - AGENCY,Kirby Ward,HCL NURSING,HNSI0001414,1474.67
Department of Health,Leicestershire Partnership NHS Trust,08/08/23,NURSE - BAND 5 - AGENCY,Kirby Ward,HCL NURSING,HNSI0001414,579.27
Department of Health,Leicestershire Partnership NHS Trust,08/08/23,NURSE - BAND 2 - AGENCY,Maple Ward,HCL NURSING,HNSI0001414,411.68
Department of Health,Leicestershire Partnership NHS Trust,08/08/23,NURSE - BAND 5 - AGENCY,Maple Ward,HCL NURSING,HNSI0001414,1260.76
Department of Health,Leicestershire Partnership NHS Trust,08/08/23,Nurse - Band 6 -Agency,Mental Health Liaison Team,HCL NURSING,HNSI0001414,1365.31
Department of Health,Leicestershire Partnership NHS Trust,08/08/23,NURSE - BAND 2 - AGENCY,Mill Lodge,HCL NURSING,HNSI0001414,1296.86
Department of Health,Leicestershire Partnership NHS Trust,08/08/23,NURSE - BAND 5 - AGENCY,Mill Lodge,HCL NURSING,HNSI0001414,2880.63
Department of Health,Leicestershire Partnership NHS Trust,08/08/23,NURSE - BAND 2 - AGENCY,Phoenix Ward (HPC),HCL NURSING,HNSI0001414,516.49
Department of Health,Leicestershire Partnership NHS Trust,08/08/23,NURSE - BAND 5 - AGENCY,Phoenix Ward (HPC),HCL NURSING,HNSI0001414,3628.73
Department of Health,Leicestershire Partnership NHS Trust,08/08/23,NURSE - BAND 2 - AGENCY,Place Of Safety Assessment Unit,HCL NURSING,HNSI0001414,498.23
Department of Health,Leicestershire Partnership NHS Trust,08/08/23,NURSE - BAND 5 - AGENCY,Place Of Safety Assessment Unit,HCL NURSING,HNSI0001414,5913.52
Department of Health,Leicestershire Partnership NHS Trust,08/08/23,NURSE - BAND 2 - AGENCY,Sycamore (Willows),HCL NURSING,HNSI0001414,928.56
Department of Health,Leicestershire Partnership NHS Trust,08/08/23,NURSE - BAND 5 - AGENCY,Sycamore (Willows),HCL NURSING,HNSI0001414,2405.06
Department of Health,Leicestershire Partnership NHS Trust,08/08/23,NURSE - BAND 5 - AGENCY,Thornton Ward - Bradgate Unit,HCL NURSING,HNSI0001414,2307.11
Department of Health,Leicestershire Partnership NHS Trust,08/08/23,Nurse - Band 6 -Agency,CAMHS Waiting List Monies,HCL WORKFORCE SOLUTIONS,HWSI0001877,15102.81
Department of Health,Leicestershire Partnership NHS Trust,08/08/23,Nurse - Band 6 -Agency,Crisis Response and Home Treatment,HCL WORKFORCE SOLUTIONS,HWSI0001877,9381.99
Department of Health,Leicestershire Partnership NHS Trust,08/08/23,NURSE - BAND 2 - AGENCY,CAMHS Inpatient Service,HCL NURSING,HNSI0001416,6595.25
Department of Health,Leicestershire Partnership NHS Trust,08/08/23,NURSE - BAND 5 - AGENCY,CAMHS Inpatient Service,HCL NURSING,HNSI0001416,11145.73
Department of Health,Leicestershire Partnership NHS Trust,08/08/23,Nurse - Band 7 - Agency,CAMHS Waiting List Monies,HCL NURSING,HNSI0001416,1981.10
Department of Health,Leicestershire Partnership NHS Trust,08/08/23,Nurse - Band 7 - Agency,Crisis Response and Home Treatment,HCL NURSING,HNSI0001416,2752.25
Department of Health,Leicestershire Partnership NHS Trust,08/08/23,NURSE - BAND 2 - AGENCY,Welford Ward (Prev Langley),HCL NURSING,HNSI0001416,218.55
Department of Health,Leicestershire Partnership NHS Trust,08/08/23,NURSE - BAND 5 - AGENCY,Welford Ward (Prev Langley),HCL NURSING,HNSI0001416,2472.74
Department of Health,Leicestershire Partnership NHS Trust,08/08/23,Business Support & Development,HIS Programme & Change,BADENOCH & CLARK LTD,A41075,25000.00
Department of Health,Leicestershire Partnership NHS Trust,08/08/23,Network Costs - WAN Maint,HIS Infrastructure,VIRGIN MEDIA BUSINESS,262421-211,36007.90
Department of Health,Leicestershire Partnership NHS Trust,09/08/23,Business Support & Development,HIS Programme & Change,BADENOCH & CLARK LTD,A40931,30000.00
Department of Health,Leicestershire Partnership NHS Trust,09/08/23,Payroll Deductions -Home Electronics 82 Jul 23,Balance Sheet Collection,SME HCI LTD,146731,23642.30
Department of Health,Leicestershire Partnership NHS Trust,10/08/23,Network Costs - WAN Maint,HIS Infrastructure,WIFI SPARK LTD,INV-023089,32130.00
Department of Health,Leicestershire Partnership NHS Trust,10/08/23,NURSE - BAND 2 - AGENCY,Beechwood Ward,HCL NURSING,HNSI0001415,8918.87
Department of Health,Leicestershire Partnership NHS Trust,10/08/23,NURSE - BAND 5 - AGENCY,Beechwood Ward,HCL NURSING,HNSI0001415,6272.91
Department of Health,Leicestershire Partnership NHS Trust,10/08/23,NURSE - BAND 2 - AGENCY,CHS Surge Ward,HCL NURSING,HNSI0001415,6769.13
Department of Health,Leicestershire Partnership NHS Trust,10/08/23,NURSE - BAND 5 - AGENCY,CHS Surge Ward,HCL NURSING,HNSI0001415,12120.86
Department of Health,Leicestershire Partnership NHS Trust,10/08/23,NURSE - BAND 5 - AGENCY,City Planned Care - East,HCL NURSING,HNSI0001415,17321.46
Department of Health,Leicestershire Partnership NHS Trust,10/08/23,NURSE - BAND 5 - AGENCY,City Planned Care - West,HCL NURSING,HNSI0001415,13708.96
Department of Health,Leicestershire Partnership NHS Trust,10/08/23,NURSE - BAND 2 - AGENCY,Clarendon Ward,HCL NURSING,HNSI0001415,8011.63
Department of Health,Leicestershire Partnership NHS Trust,10/08/23,NURSE - BAND 5 - AGENCY,Clarendon Ward,HCL NURSING,HNSI0001415,1509.93
Department of Health,Leicestershire Partnership NHS Trust,10/08/23,NURSE - BAND 2 - AGENCY,Coalville Snibston Ward,HCL NURSING,HNSI0001415,6176.68
Department of Health,Leicestershire Partnership NHS Trust,10/08/23,NURSE - BAND 5 - AGENCY,Coalville Snibston Ward,HCL NURSING,HNSI0001415,1924.00
Department of Health,Leicestershire Partnership NHS Trust,10/08/23,NURSE - BAND 2 - AGENCY,Coalville Ward 2,HCL NURSING,HNSI0001415,6338.43
Department of Health,Leicestershire Partnership NHS Trust,10/08/23,NURSE - BAND 5 - AGENCY,Coalville Ward 2,HCL NURSING,HNSI0001415,327.36
Department of Health,Leicestershire Partnership NHS Trust,10/08/23,NURSE - BAND 2 - AGENCY,Dalgliesh Ward,HCL NURSING,HNSI0001415,4721.64
Department of Health,Leicestershire Partnership NHS Trust,10/08/23,NURSE - BAND 5 - AGENCY,Dalgliesh Ward,HCL NURSING,HNSI0001415,3588.36
Department of Health,Leicestershire Partnership NHS Trust,10/08/23,NURSE - BAND 5 - AGENCY,"East Planned Care - Melton,Syston,Rutland",HCL NURSING,HNSI0001415,2476.54
Department of Health,Leicestershire Partnership NHS Trust,10/08/23,NURSE - BAND 2 - AGENCY,H&B Comm Hosp East Ward,HCL NURSING,HNSI0001415,6652.87
Department of Health,Leicestershire Partnership NHS Trust,10/08/23,NURSE - BAND 5 - AGENCY,H&B Comm Hosp East Ward,HCL NURSING,HNSI0001415,5053.10
Department of Health,Leicestershire Partnership NHS Trust,10/08/23,NURSE - BAND 2 - AGENCY,H&B Comm Hosp North Ward,HCL NURSING,HNSI0001415,5837.13
Department of Health,Leicestershire Partnership NHS Trust,10/08/23,NURSE - BAND 5 - AGENCY,H&B Comm Hosp North Ward,HCL NURSING,HNSI0001415,4073.07
Department of Health,Leicestershire Partnership NHS Trust,10/08/23,NURSE - BAND 2 - AGENCY,Lough Swithland Ward,HCL NURSING,HNSI0001415,6028.43
Department of Health,Leicestershire Partnership NHS Trust,10/08/23,NURSE - BAND 5 - AGENCY,Lough Swithland Ward,HCL NURSING,HNSI0001415,2232.30
Department of Health,Leicestershire Partnership NHS Trust,10/08/23,NURSE - BAND 2 - AGENCY,Rutland Ward Nursing,HCL NURSING,HNSI0001415,2893.60
Department of Health,Leicestershire Partnership NHS Trust,10/08/23,NURSE - BAND 5 - AGENCY,Rutland Ward Nursing,HCL NURSING,HNSI0001415,3719.59
Department of Health,Leicestershire Partnership NHS Trust,10/08/23,NURSE - BAND 2 - AGENCY,St Lukes Stroke Ward,HCL NURSING,HNSI0001415,7548.66
Department of Health,Leicestershire Partnership NHS Trust,10/08/23,NURSE - BAND 5 - AGENCY,St Lukes Stroke Ward,HCL NURSING,HNSI0001415,2990.07
Department of Health,Leicestershire Partnership NHS Trust,10/08/23,NURSE - BAND 2 - AGENCY,St Lukes Ward 3,HCL NURSING,HNSI0001415,3139.26
Department of Health,Leicestershire Partnership NHS Trust,10/08/23,NURSE - BAND 5 - AGENCY,St Lukes Ward 3,HCL NURSING,HNSI0001415,2319.66
Department of Health,Leicestershire Partnership NHS Trust,10/08/23,NURSE - BAND 2 - AGENCY,West Planned Care  - Charnwood Hub,HCL NURSING,HNSI0001415,238.77
Department of Health,Leicestershire Partnership NHS Trust,10/08/23,NURSE - BAND 5 - AGENCY,West Planned Care  - Charnwood Hub,HCL NURSING,HNSI0001415,2395.61
Department of Health,Leicestershire Partnership NHS Trust,10/08/23,NURSE - BAND 5 - AGENCY,West Planned Care  - Hinckley Hub,HCL NURSING,HNSI0001415,291.46
Department of Health,Leicestershire Partnership NHS Trust,10/08/23,Insurance Costs,Chief Executives Office,NHS LITIGATION AUTHORITY,SICX413080,226283.80
Department of Health,Leicestershire Partnership NHS Trust,11/08/23,Healthcare Services / Recharges from Non-NHS Bodies,Adult Eating Disorder Collaborative,CYGNET HC LTD,EMED014INV,27375.14
Department of Health,Leicestershire Partnership NHS Trust,11/08/23,NURSE - BAND 2 - AGENCY,Beechwood Ward,HCL NURSING,HNSI0001425,9532.75
Department of Health,Leicestershire Partnership NHS Trust,11/08/23,NURSE - BAND 5 - AGENCY,Beechwood Ward,HCL NURSING,HNSI0001425,6270.55
Department of Health,Leicestershire Partnership NHS Trust,11/08/23,NURSE - BAND 2 - AGENCY,CHS Surge Ward,HCL NURSING,HNSI0001425,7068.76
Department of Health,Leicestershire Partnership NHS Trust,11/08/23,NURSE - BAND 5 - AGENCY,CHS Surge Ward,HCL NURSING,HNSI0001425,5841.43
Department of Health,Leicestershire Partnership NHS Trust,11/08/23,NURSE - BAND 5 - AGENCY,City Planned Care - East,HCL NURSING,HNSI0001425,15511.06
Department of Health,Leicestershire Partnership NHS Trust,11/08/23,NURSE - BAND 5 - AGENCY,City Planned Care - West,HCL NURSING,HNSI0001425,16188.63
Department of Health,Leicestershire Partnership NHS Trust,11/08/23,NURSE - BAND 2 - AGENCY,Clarendon Ward,HCL NURSING,HNSI0001425,7392.04
Department of Health,Leicestershire Partnership NHS Trust,11/08/23,NURSE - BAND 5 - AGENCY,Clarendon Ward,HCL NURSING,HNSI0001425,2767.72
Department of Health,Leicestershire Partnership NHS Trust,11/08/23,NURSE - BAND 2 - AGENCY,Coalville Snibston Ward,HCL NURSING,HNSI0001425,7939.27
Department of Health,Leicestershire Partnership NHS Trust,11/08/23,NURSE - BAND 5 - AGENCY,Coalville Snibston Ward,HCL NURSING,HNSI0001425,2420.18
Department of Health,Leicestershire Partnership NHS Trust,11/08/23,NURSE - BAND 2 - AGENCY,Coalville Ward 2,HCL NURSING,HNSI0001425,5049.58
Department of Health,Leicestershire Partnership NHS Trust,11/08/23,NURSE - BAND 5 - AGENCY,Coalville Ward 2,HCL NURSING,HNSI0001425,2556.61
Department of Health,Leicestershire Partnership NHS Trust,11/08/23,NURSE - BAND 2 - AGENCY,Dalgliesh Ward,HCL NURSING,HNSI0001425,3598.81
Department of Health,Leicestershire Partnership NHS Trust,11/08/23,NURSE - BAND 5 - AGENCY,Dalgliesh Ward,HCL NURSING,HNSI0001425,4896.87
Department of Health,Leicestershire Partnership NHS Trust,11/08/23,NURSE - BAND 5 - AGENCY,"East Planned Care - Melton,Syston,Rutland",HCL NURSING,HNSI0001425,3172.17
Department of Health,Leicestershire Partnership NHS Trust,11/08/23,NURSE - BAND 2 - AGENCY,H&B Comm Hosp East Ward,HCL NURSING,HNSI0001425,6423.38
Department of Health,Leicestershire Partnership NHS Trust,11/08/23,NURSE - BAND 5 - AGENCY,H&B Comm Hosp East Ward,HCL NURSING,HNSI0001425,6123.83
Department of Health,Leicestershire Partnership NHS Trust,11/08/23,NURSE - BAND 2 - AGENCY,H&B Comm Hosp North Ward,HCL NURSING,HNSI0001425,4524.34
Department of Health,Leicestershire Partnership NHS Trust,11/08/23,NURSE - BAND 5 - AGENCY,H&B Comm Hosp North Ward,HCL NURSING,HNSI0001425,3465.31
Department of Health,Leicestershire Partnership NHS Trust,11/08/23,NURSE - BAND 2 - AGENCY,Lough Swithland Ward,HCL NURSING,HNSI0001425,4873.88
Department of Health,Leicestershire Partnership NHS Trust,11/08/23,NURSE - BAND 5 - AGENCY,Lough Swithland Ward,HCL NURSING,HNSI0001425,1630.35
Department of Health,Leicestershire Partnership NHS Trust,11/08/23,NURSE - BAND 2 - AGENCY,Rutland Ward Nursing,HCL NURSING,HNSI0001425,2522.35
Department of Health,Leicestershire Partnership NHS Trust,11/08/23,NURSE - BAND 5 - AGENCY,Rutland Ward Nursing,HCL NURSING,HNSI0001425,3984.01
Department of Health,Leicestershire Partnership NHS Trust,11/08/23,NURSE - BAND 2 - AGENCY,St Lukes Stroke Ward,HCL NURSING,HNSI0001425,4811.14
Department of Health,Leicestershire Partnership NHS Trust,11/08/23,NURSE - BAND 5 - AGENCY,St Lukes Stroke Ward,HCL NURSING,HNSI0001425,3052.76
Department of Health,Leicestershire Partnership NHS Trust,11/08/23,NURSE - BAND 2 - AGENCY,St Lukes Ward 3,HCL NURSING,HNSI0001425,2162.38
Department of Health,Leicestershire Partnership NHS Trust,11/08/23,NURSE - BAND 5 - AGENCY,St Lukes Ward 3,HCL NURSING,HNSI0001425,2383.89
Department of Health,Leicestershire Partnership NHS Trust,11/08/23,NURSE - BAND 5 - AGENCY,West Planned Care  - Charnwood Hub,HCL NURSING,HNSI0001425,1756.31
Department of Health,Leicestershire Partnership NHS Trust,11/08/23,NURSE - BAND 5 - AGENCY,West Planned Care  - Hinckley Hub,HCL NURSING,HNSI0001425,1861.39
Department of Health,Leicestershire Partnership NHS Trust,14/08/23,Crs_NHS_LT1y -Resus Inventory Supplied.,Balance Sheet Collection,SUPPLY CHAIN CO LTD,1124125051,29480.46
Department of Health,Leicestershire Partnership NHS Trust,14/08/23,Nurse - Band 6 -Agency,AMH - Central Access Point,HCL NURSING,HNSI0001424,1552.77
Department of Health,Leicestershire Partnership NHS Trust,14/08/23,Nurse - Band 7 - Agency,Adult County- East Leicester CMHT,HCL NURSING,HNSI0001424,1026.70
Department of Health,Leicestershire Partnership NHS Trust,14/08/23,NURSE - BAND 2 - AGENCY,Agnes Unit,HCL NURSING,HNSI0001424,28123.18
Department of Health,Leicestershire Partnership NHS Trust,14/08/23,NURSE - BAND 5 - AGENCY,Agnes Unit,HCL NURSING,HNSI0001424,18079.66
Department of Health,Leicestershire Partnership NHS Trust,14/08/23,Nurse - Band 7 - Agency,Agnes Unit,HCL NURSING,HNSI0001424,1573.86
Department of Health,Leicestershire Partnership NHS Trust,14/08/23,NURSE - BAND 2 - AGENCY,Ashby Ward (Bradgate Unit),HCL NURSING,HNSI0001424,2758.99
Department of Health,Leicestershire Partnership NHS Trust,14/08/23,NURSE - BAND 5 - AGENCY,Ashby Ward (Bradgate Unit),HCL NURSING,HNSI0001424,11273.61
Department of Health,Leicestershire Partnership NHS Trust,14/08/23,NURSE - BAND 2 - AGENCY,Aston Ward Bradgate Unit (Prev Welford),HCL NURSING,HNSI0001424,1128.35
Department of Health,Leicestershire Partnership NHS Trust,14/08/23,NURSE - BAND 5 - AGENCY,Aston Ward Bradgate Unit (Prev Welford),HCL NURSING,HNSI0001424,3534.41
Department of Health,Leicestershire Partnership NHS Trust,14/08/23,NURSE - BAND 2 - AGENCY,Beaumont Ward - Bradgate Unit,HCL NURSING,HNSI0001424,1596.30
Department of Health,Leicestershire Partnership NHS Trust,14/08/23,NURSE - BAND 5 - AGENCY,Beaumont Ward - Bradgate Unit,HCL NURSING,HNSI0001424,9005.16
Department of Health,Leicestershire Partnership NHS Trust,14/08/23,NURSE - BAND 2 - AGENCY,Belvoir Psychiatric Intensive Care Unit,HCL NURSING,HNSI0001424,1430.20
Department of Health,Leicestershire Partnership NHS Trust,14/08/23,NURSE - BAND 5 - AGENCY,Belvoir Psychiatric Intensive Care Unit,HCL NURSING,HNSI0001424,5209.54
Department of Health,Leicestershire Partnership NHS Trust,14/08/23,NURSE - BAND 2 - AGENCY,Bosworth Ward - Bradgate Unit,HCL NURSING,HNSI0001424,2075.58
Department of Health,Leicestershire Partnership NHS Trust,14/08/23,NURSE - BAND 5 - AGENCY,Bosworth Ward - Bradgate Unit,HCL NURSING,HNSI0001424,3198.27
Department of Health,Leicestershire Partnership NHS Trust,14/08/23,NURSE - BAND 2 - AGENCY,Cedar (Willows),HCL NURSING,HNSI0001424,411.68
Department of Health,Leicestershire Partnership NHS Trust,14/08/23,NURSE - BAND 5 - AGENCY,Cedar (Willows),HCL NURSING,HNSI0001424,1571.65
Department of Health,Leicestershire Partnership NHS Trust,14/08/23,NURSE - BAND 2 - AGENCY,Coleman Ward,HCL NURSING,HNSI0001424,1273.21
Department of Health,Leicestershire Partnership NHS Trust,14/08/23,NURSE - BAND 5 - AGENCY,Coleman Ward,HCL NURSING,HNSI0001424,986.91
Department of Health,Leicestershire Partnership NHS Trust,14/08/23,NURSE - BAND 5 - AGENCY,Crisis Resolution,HCL NURSING,HNSI0001424,2214.93
Department of Health,Leicestershire Partnership NHS Trust,14/08/23,Nurse - Band 6 -Agency,Crisis Resolution,HCL NURSING,HNSI0001424,334.25
Department of Health,Leicestershire Partnership NHS Trust,14/08/23,NURSE - BAND 2 - AGENCY,Griffin Ward (HPC),HCL NURSING,HNSI0001424,617.53
Department of Health,Leicestershire Partnership NHS Trust,14/08/23,NURSE - BAND 5 - AGENCY,Griffin Ward (HPC),HCL NURSING,HNSI0001424,3139.04
Department of Health,Leicestershire Partnership NHS Trust,14/08/23,NURSE - BAND 2 - AGENCY,Gwendolen Ward,HCL NURSING,HNSI0001424,1235.05
Department of Health,Leicestershire Partnership NHS Trust,14/08/23,NURSE - BAND 5 - AGENCY,Gwendolen Ward,HCL NURSING,HNSI0001424,1111.19
Department of Health,Leicestershire Partnership NHS Trust,14/08/23,NURSE - BAND 2 - AGENCY,Heather Ward,HCL NURSING,HNSI0001424,823.37
Department of Health,Leicestershire Partnership NHS Trust,14/08/23,NURSE - BAND 5 - AGENCY,Heather Ward,HCL NURSING,HNSI0001424,6403.28
Department of Health,Leicestershire Partnership NHS Trust,14/08/23,NURSE - BAND 2 - AGENCY,Kirby Ward,HCL NURSING,HNSI0001424,970.73
Department of Health,Leicestershire Partnership NHS Trust,14/08/23,NURSE - BAND 5 - AGENCY,Kirby Ward,HCL NURSING,HNSI0001424,1322.99
Department of Health,Leicestershire Partnership NHS Trust,14/08/23,NURSE - BAND 2 - AGENCY,Maple Ward,HCL NURSING,HNSI0001424,878.97
Department of Health,Leicestershire Partnership NHS Trust,14/08/23,NURSE - BAND 5 - AGENCY,Maple Ward,HCL NURSING,HNSI0001424,1368.40
Department of Health,Leicestershire Partnership NHS Trust,14/08/23,NURSE - BAND 2 - AGENCY,Mill Lodge,HCL NURSING,HNSI0001424,3074.85
Department of Health,Leicestershire Partnership NHS Trust,14/08/23,NURSE - BAND 5 - AGENCY,Mill Lodge,HCL NURSING,HNSI0001424,2996.57
Department of Health,Leicestershire Partnership NHS Trust,14/08/23,NURSE - BAND 2 - AGENCY,Phoenix Ward (HPC),HCL NURSING,HNSI0001424,871.75
Department of Health,Leicestershire Partnership NHS Trust,14/08/23,NURSE - BAND 5 - AGENCY,Phoenix Ward (HPC),HCL NURSING,HNSI0001424,3050.45
Department of Health,Leicestershire Partnership NHS Trust,14/08/23,NURSE - BAND 2 - AGENCY,Place Of Safety Assessment Unit,HCL NURSING,HNSI0001424,758.99
Department of Health,Leicestershire Partnership NHS Trust,14/08/23,NURSE - BAND 5 - AGENCY,Place Of Safety Assessment Unit,HCL NURSING,HNSI0001424,3833.69
Department of Health,Leicestershire Partnership NHS Trust,14/08/23,NURSE - BAND 2 - AGENCY,Sycamore (Willows),HCL NURSING,HNSI0001424,1483.48
Department of Health,Leicestershire Partnership NHS Trust,14/08/23,NURSE - BAND 5 - AGENCY,Sycamore (Willows),HCL NURSING,HNSI0001424,1653.32
Department of Health,Leicestershire Partnership NHS Trust,14/08/23,NURSE - BAND 2 - AGENCY,Thornton Ward - Bradgate Unit,HCL NURSING,HNSI0001424,456.63
Department of Health,Leicestershire Partnership NHS Trust,14/08/23,NURSE - BAND 5 - AGENCY,Thornton Ward - Bradgate Unit,HCL NURSING,HNSI0001424,2489.72
Department of Health,Leicestershire Partnership NHS Trust,14/08/23,Nurse - Band 6 -Agency,CAMHS Waiting List Monies,HCL WORKFORCE SOLUTIONS,HWSI0001883,13682.02
Department of Health,Leicestershire Partnership NHS Trust,14/08/23,Nurse - Band 6 -Agency,Crisis Response and Home Treatment,HCL WORKFORCE SOLUTIONS,HWSI0001883,8780.87
Department of Health,Leicestershire Partnership NHS Trust,14/08/23,Mobile Telephone Rental / Calls,Specific Unit Budget Reserves,VODAFONE CORPORATE LTD,AUGUST2023,70900.87
Department of Health,Leicestershire Partnership NHS Trust,15/08/23,Pharmacy Payables Control A/C (LPT JAC),Balance Sheet Collection,ALLOGA UK LTD,SIN103867776,29655.96
Department of Health,Leicestershire Partnership NHS Trust,15/08/23,Water & Sewerage Charges,"Beaumont Leys Health Centre (P94, LPT)",WATER PLUS,0865005329/INV03020207,158.95
Department of Health,Leicestershire Partnership NHS Trust,15/08/23,Water & Sewerage Charges,Bridge Park Road (Unit C18) (LPT),WATER PLUS,0865005329/INV03020207,35.89
Department of Health,Leicestershire Partnership NHS Trust,15/08/23,Water & Sewerage Charges,"Bridge Park Road - Units 2 and 3 (P148, LPT)",WATER PLUS,0865005329/INV03020207,396.80
Department of Health,Leicestershire Partnership NHS Trust,15/08/23,Water & Sewerage Charges,"Coalville Community Hospital (P138, LPT)",WATER PLUS,0865005329/INV03020207,37204.25
Department of Health,Leicestershire Partnership NHS Trust,15/08/23,Water & Sewerage Charges,"Coalville Health Centre (P121, LPT)",WATER PLUS,0865005329/INV03020207,290.36
Department of Health,Leicestershire Partnership NHS Trust,15/08/23,Water & Sewerage Charges,"Evington Centre (P6, LPT)",WATER PLUS,0865005329/INV03020207,1591.31
Department of Health,Leicestershire Partnership NHS Trust,15/08/23,Water & Sewerage Charges,"Feilding Palmer Hospital (Lutterworth) (P131, LPT)",WATER PLUS,0865005329/INV03020207,35.77
Department of Health,Leicestershire Partnership NHS Trust,15/08/23,Water & Sewerage Charges,HIS,WATER PLUS,0865005329/INV03020207,83.60
Department of Health,Leicestershire Partnership NHS Trust,15/08/23,Water & Sewerage Charges,Hinckley & District Hospital (PROPCO),WATER PLUS,0865005329/INV03020207,59.43
Department of Health,Leicestershire Partnership NHS Trust,15/08/23,Water & Sewerage Charges,"Hinckley and Bosworth Community Hospital (Sunnyside) (P133, LPT)",WATER PLUS,0865005329/INV03020207,2036.66
Department of Health,Leicestershire Partnership NHS Trust,15/08/23,Water & Sewerage Charges,"Hynca Lodge (P33, LPT)",WATER PLUS,0865005329/INV03020207,240.63
Department of Health,Leicestershire Partnership NHS Trust,15/08/23,Water & Sewerage Charges,Linnaeus Nursery - Cordelia Close,WATER PLUS,0865005329/INV03020207,44.50
Department of Health,Leicestershire Partnership NHS Trust,15/08/23,Water & Sewerage Charges,"Loughborough Hospital (P136, LPT)",WATER PLUS,0865005329/INV03020207,3397.88
Department of Health,Leicestershire Partnership NHS Trust,15/08/23,Water & Sewerage Charges,"Narborough Health Centre (P117, LPT)",WATER PLUS,0865005329/INV03020207,96.52
Department of Health,Leicestershire Partnership NHS Trust,15/08/23,Water & Sewerage Charges,"OSL House (P54, LPT)",WATER PLUS,0865005329/INV03020207,317.08
Department of Health,Leicestershire Partnership NHS Trust,15/08/23,Water & Sewerage Charges,"Orchard Resource Centre (P15, LPT)",WATER PLUS,0865005329/INV03020207,443.18
Department of Health,Leicestershire Partnership NHS Trust,15/08/23,Water & Sewerage Charges,"Prince Philip House (P96, LPT)",WATER PLUS,0865005329/INV03020207,372.84
Department of Health,Leicestershire Partnership NHS Trust,15/08/23,Water & Sewerage Charges,Rothesay -  London Road 352A (LPT),WATER PLUS,0865005329/INV03020207,331.17
Department of Health,Leicestershire Partnership NHS Trust,15/08/23,Water & Sewerage Charges,"Rutland Memorial Hospital (P134, LPT)",WATER PLUS,0865005329/INV03020207,3467.20
Department of Health,Leicestershire Partnership NHS Trust,15/08/23,Water & Sewerage Charges,"Shepshed Health Centre (P123, LPT)",WATER PLUS,0865005329/INV03020207,340.84
Department of Health,Leicestershire Partnership NHS Trust,15/08/23,Water & Sewerage Charges,"Springfield Road Health Centre (P92, LPT)",WATER PLUS,0865005329/INV03020207,287.02
Department of Health,Leicestershire Partnership NHS Trust,15/08/23,Water & Sewerage Charges,"Stewart House (P61, LPT)",WATER PLUS,0865005329/INV03020207,1221.74
Department of Health,Leicestershire Partnership NHS Trust,15/08/23,Water & Sewerage Charges,"Swithland House - London Road 352 (P44, LPT)",WATER PLUS,0865005329/INV03020207,116.56
Department of Health,Leicestershire Partnership NHS Trust,15/08/23,Water & Sewerage Charges,"The Agnes Unit (AKA Assessment and Treatment Centre) (P85, LPT)",WATER PLUS,0865005329/INV03020207,886.68
Department of Health,Leicestershire Partnership NHS Trust,15/08/23,Water & Sewerage Charges,"The Cedars (P19, LPT)",WATER PLUS,0865005329/INV03020207,133.71
Department of Health,Leicestershire Partnership NHS Trust,15/08/23,Water & Sewerage Charges,"The Grange 1 (P4, LPT)",WATER PLUS,0865005329/INV03020207,45.91
Department of Health,Leicestershire Partnership NHS Trust,15/08/23,Water & Sewerage Charges,"The Grange 2 (P41, LPT)",WATER PLUS,0865005329/INV03020207,69.29
Department of Health,Leicestershire Partnership NHS Trust,15/08/23,Water & Sewerage Charges,"The Willows - Cordelia Close (P22, LPT)",WATER PLUS,0865005329/INV03020207,1478.82
Department of Health,Leicestershire Partnership NHS Trust,15/08/23,Water & Sewerage Charges,"Westcotes Group -Westcotes House (P78, LPT)",WATER PLUS,0865005329/INV03020207,102.37
Department of Health,Leicestershire Partnership NHS Trust,15/08/23,Water & Sewerage Charges,Westcotes Group – Artemis House,WATER PLUS,0865005329/INV03020207,1044.63
Department of Health,Leicestershire Partnership NHS Trust,16/08/23,Gas,"Beaumont Leys Health Centre (P94, LPT)",TOTAL GAS & POWER LTD,310699163/23,931.74
Department of Health,Leicestershire Partnership NHS Trust,16/08/23,Gas,"Bennion Centre (including Forest Grange Day Unit) (P8, LPT)",TOTAL GAS & POWER LTD,310699163/23,9079.04
Department of Health,Leicestershire Partnership NHS Trust,16/08/23,Gas,"Bradgate Unit (including Glenvale day Unit) (P7, LPT)",TOTAL GAS & POWER LTD,310699163/23,14995.67
Department of Health,Leicestershire Partnership NHS Trust,16/08/23,Gas,Bridge Park Plaza - First Floor (LPT),TOTAL GAS & POWER LTD,310699163/23,1585.16
Department of Health,Leicestershire Partnership NHS Trust,16/08/23,Gas,"Bridge Park Road - Units 2 and 3 (P148, LPT)",TOTAL GAS & POWER LTD,310699163/23,231.34
Department of Health,Leicestershire Partnership NHS Trust,16/08/23,Gas,"Coalville Community Hospital (P138, LPT)",TOTAL GAS & POWER LTD,310699163/23,11769.72
Department of Health,Leicestershire Partnership NHS Trust,16/08/23,Gas,"Coalville Health Centre (P121, LPT)",TOTAL GAS & POWER LTD,310699163/23,469.29
Department of Health,Leicestershire Partnership NHS Trust,16/08/23,Gas,"Evington Centre (P6, LPT)",TOTAL GAS & POWER LTD,310699163/23,1214.15
Department of Health,Leicestershire Partnership NHS Trust,16/08/23,Gas,"Farm Lodge (P34, LPT)",TOTAL GAS & POWER LTD,310699163/23,76.41
Department of Health,Leicestershire Partnership NHS Trust,16/08/23,Gas,"Feilding Palmer Hospital (Lutterworth) (P131, LPT)",TOTAL GAS & POWER LTD,310699163/23,2413.80
Department of Health,Leicestershire Partnership NHS Trust,16/08/23,Gas,"Frith Cottages 3 & 4 (P36, LPT)",TOTAL GAS & POWER LTD,310699163/23,129.65
Department of Health,Leicestershire Partnership NHS Trust,16/08/23,Gas,HIS,TOTAL GAS & POWER LTD,310699163/23,130.03
Department of Health,Leicestershire Partnership NHS Trust,16/08/23,Gas,"Hawthorne Centre - Coalville (P14, LPT)",TOTAL GAS & POWER LTD,310699163/23,336.42
Department of Health,Leicestershire Partnership NHS Trust,16/08/23,Gas,"Hinckley and Bosworth Community Hospital (Sunnyside) (P133, LPT)",TOTAL GAS & POWER LTD,310699163/23,8540.21
Department of Health,Leicestershire Partnership NHS Trust,16/08/23,Gas,"Hynca Lodge (P33, LPT)",TOTAL GAS & POWER LTD,310699163/23,390.27
Department of Health,Leicestershire Partnership NHS Trust,16/08/23,Gas,"LGH - Gwendolen House (P4, LPT)",TOTAL GAS & POWER LTD,310699163/23,1300.28
Department of Health,Leicestershire Partnership NHS Trust,16/08/23,Gas,"Loughborough Hospital (P136, LPT)",TOTAL GAS & POWER LTD,310699163/23,16807.11
Department of Health,Leicestershire Partnership NHS Trust,16/08/23,Gas,Mawson House (LPT),TOTAL GAS & POWER LTD,310699163/23,226.67
Department of Health,Leicestershire Partnership NHS Trust,16/08/23,Gas,"Mett Centre (P49, LPT)",TOTAL GAS & POWER LTD,310699163/23,339.88
Department of Health,Leicestershire Partnership NHS Trust,16/08/23,Gas,"Narborough Health Centre (P117, LPT)",TOTAL GAS & POWER LTD,310699163/23,382.55
Department of Health,Leicestershire Partnership NHS Trust,16/08/23,Gas,"Neville Centre - LGH (was DSC) (P147, LPT)",TOTAL GAS & POWER LTD,310699163/23,887.70
Department of Health,Leicestershire Partnership NHS Trust,16/08/23,Gas,"OSL House (P54, LPT)",TOTAL GAS & POWER LTD,310699163/23,449.64
Department of Health,Leicestershire Partnership NHS Trust,16/08/23,Gas,"Orchard Resource Centre (P15, LPT)",TOTAL GAS & POWER LTD,310699163/23,321.62
Department of Health,Leicestershire Partnership NHS Trust,16/08/23,Gas,"Rutland Memorial Hospital (P134, LPT)",TOTAL GAS & POWER LTD,310699163/23,383.13
Department of Health,Leicestershire Partnership NHS Trust,16/08/23,Gas,"Shepshed Health Centre (P123, LPT)",TOTAL GAS & POWER LTD,310699163/23,443.28
Department of Health,Leicestershire Partnership NHS Trust,16/08/23,Gas,"Springfield Road Health Centre (P92, LPT)",TOTAL GAS & POWER LTD,310699163/23,470.78
Department of Health,Leicestershire Partnership NHS Trust,16/08/23,Gas,"Stewart House (P61, LPT)",TOTAL GAS & POWER LTD,310699163/23,3375.92
Department of Health,Leicestershire Partnership NHS Trust,16/08/23,Gas,"Swithland House - London Road 352 (P44, LPT)",TOTAL GAS & POWER LTD,310699163/23,816.72
Department of Health,Leicestershire Partnership NHS Trust,16/08/23,Gas,"The Agnes Unit (AKA Assessment and Treatment Centre) (P85, LPT)",TOTAL GAS & POWER LTD,310699163/23,5133.63
Department of Health,Leicestershire Partnership NHS Trust,16/08/23,Gas,The Beacon,TOTAL GAS & POWER LTD,310699163/23,1968.01
Department of Health,Leicestershire Partnership NHS Trust,16/08/23,Gas,"The Cedars (P19, LPT)",TOTAL GAS & POWER LTD,310699163/23,153.57
Department of Health,Leicestershire Partnership NHS Trust,16/08/23,Gas,"The Grange 1 (P4, LPT)",TOTAL GAS & POWER LTD,310699163/23,222.90
Department of Health,Leicestershire Partnership NHS Trust,16/08/23,Gas,"The Grange 2 (P41, LPT)",TOTAL GAS & POWER LTD,310699163/23,100.28
Department of Health,Leicestershire Partnership NHS Trust,16/08/23,Gas,"The Willows - Cordelia Close (P22, LPT)",TOTAL GAS & POWER LTD,310699163/23,2677.10
Department of Health,Leicestershire Partnership NHS Trust,16/08/23,Gas,"Valentine Centre (P3, LPT)",TOTAL GAS & POWER LTD,310699163/23,2270.21
Department of Health,Leicestershire Partnership NHS Trust,16/08/23,Gas,"Westcotes Group -Westcotes House (P78, LPT)",TOTAL GAS & POWER LTD,310699163/23,1214.31
Department of Health,Leicestershire Partnership NHS Trust,16/08/23,Gas,"Winstanley Drive Health Centre (P8, LPT)",TOTAL GAS & POWER LTD,310699163/23,478.60
Department of Health,Leicestershire Partnership NHS Trust,17/08/23,External Consultancy Fees,Facilities Team,BLOOM PROC SERV LTD,SIN045223,36895.79
Department of Health,Leicestershire Partnership NHS Trust,21/08/23,Nurse - Band 6 -Agency,CAMHS Waiting List Monies,HCL WORKFORCE SOLUTIONS,HWSI0001891,14361.16
Department of Health,Leicestershire Partnership NHS Trust,21/08/23,Nurse - Band 6 -Agency,Crisis Response and Home Treatment,HCL WORKFORCE SOLUTIONS,HWSI0001891,7447.13
Department of Health,Leicestershire Partnership NHS Trust,21/08/23,Nurse - Band 6 -Agency,AMH - Central Access Point,HCL NURSING,HNSI0001428,1565.34
Department of Health,Leicestershire Partnership NHS Trust,21/08/23,NURSE - BAND 2 - AGENCY,Agnes Unit,HCL NURSING,HNSI0001428,22500.52
Department of Health,Leicestershire Partnership NHS Trust,21/08/23,NURSE - BAND 5 - AGENCY,Agnes Unit,HCL NURSING,HNSI0001428,24927.37
Department of Health,Leicestershire Partnership NHS Trust,21/08/23,Nurse - Band 7 - Agency,Agnes Unit,HCL NURSING,HNSI0001428,1573.83
Department of Health,Leicestershire Partnership NHS Trust,21/08/23,NURSE - BAND 2 - AGENCY,Ashby Ward (Bradgate Unit),HCL NURSING,HNSI0001428,1089.74
Department of Health,Leicestershire Partnership NHS Trust,21/08/23,NURSE - BAND 5 - AGENCY,Ashby Ward (Bradgate Unit),HCL NURSING,HNSI0001428,9850.77
Department of Health,Leicestershire Partnership NHS Trust,21/08/23,NURSE - BAND 2 - AGENCY,Aston Ward Bradgate Unit (Prev Welford),HCL NURSING,HNSI0001428,1297.53
Department of Health,Leicestershire Partnership NHS Trust,21/08/23,NURSE - BAND 5 - AGENCY,Aston Ward Bradgate Unit (Prev Welford),HCL NURSING,HNSI0001428,2914.96
Department of Health,Leicestershire Partnership NHS Trust,21/08/23,NURSE - BAND 2 - AGENCY,Beaumont Ward - Bradgate Unit,HCL NURSING,HNSI0001428,1077.59
Department of Health,Leicestershire Partnership NHS Trust,21/08/23,NURSE - BAND 5 - AGENCY,Beaumont Ward - Bradgate Unit,HCL NURSING,HNSI0001428,8789.29
Department of Health,Leicestershire Partnership NHS Trust,21/08/23,NURSE - BAND 2 - AGENCY,Belvoir Psychiatric Intensive Care Unit,HCL NURSING,HNSI0001428,2390.19
Department of Health,Leicestershire Partnership NHS Trust,21/08/23,NURSE - BAND 5 - AGENCY,Belvoir Psychiatric Intensive Care Unit,HCL NURSING,HNSI0001428,5715.72
Department of Health,Leicestershire Partnership NHS Trust,21/08/23,NURSE - BAND 2 - AGENCY,Bosworth Ward - Bradgate Unit,HCL NURSING,HNSI0001428,1018.89
Department of Health,Leicestershire Partnership NHS Trust,21/08/23,NURSE - BAND 5 - AGENCY,Bosworth Ward - Bradgate Unit,HCL NURSING,HNSI0001428,2838.63
Department of Health,Leicestershire Partnership NHS Trust,21/08/23,NURSE - BAND 2 - AGENCY,Cedar (Willows),HCL NURSING,HNSI0001428,797.27
Department of Health,Leicestershire Partnership NHS Trust,21/08/23,NURSE - BAND 5 - AGENCY,Cedar (Willows),HCL NURSING,HNSI0001428,1753.87
Department of Health,Leicestershire Partnership NHS Trust,21/08/23,Nurse - Band 6 -Agency,City West CMHT MHSOP,HCL NURSING,HNSI0001428,1046.25
Department of Health,Leicestershire Partnership NHS Trust,21/08/23,NURSE - BAND 2 - AGENCY,Coleman Ward,HCL NURSING,HNSI0001428,1099.19
Department of Health,Leicestershire Partnership NHS Trust,21/08/23,NURSE - BAND 5 - AGENCY,Coleman Ward,HCL NURSING,HNSI0001428,823.29
Department of Health,Leicestershire Partnership NHS Trust,21/08/23,NURSE - BAND 5 - AGENCY,Crisis Resolution,HCL NURSING,HNSI0001428,880.95
Department of Health,Leicestershire Partnership NHS Trust,21/08/23,NURSE - BAND 2 - AGENCY,Griffin Ward (HPC),HCL NURSING,HNSI0001428,823.37
Department of Health,Leicestershire Partnership NHS Trust,21/08/23,NURSE - BAND 5 - AGENCY,Griffin Ward (HPC),HCL NURSING,HNSI0001428,7266.04
Department of Health,Leicestershire Partnership NHS Trust,21/08/23,NURSE - BAND 2 - AGENCY,Gwendolen Ward,HCL NURSING,HNSI0001428,804.86
Department of Health,Leicestershire Partnership NHS Trust,21/08/23,NURSE - BAND 5 - AGENCY,Gwendolen Ward,HCL NURSING,HNSI0001428,3374.91
Department of Health,Leicestershire Partnership NHS Trust,21/08/23,NURSE - BAND 2 - AGENCY,Heather Ward,HCL NURSING,HNSI0001428,1305.72
Department of Health,Leicestershire Partnership NHS Trust,21/08/23,NURSE - BAND 5 - AGENCY,Heather Ward,HCL NURSING,HNSI0001428,6129.44
Department of Health,Leicestershire Partnership NHS Trust,21/08/23,NURSE - BAND 2 - AGENCY,Kirby Ward,HCL NURSING,HNSI0001428,164.83
Department of Health,Leicestershire Partnership NHS Trust,21/08/23,NURSE - BAND 5 - AGENCY,Kirby Ward,HCL NURSING,HNSI0001428,2981.22
Department of Health,Leicestershire Partnership NHS Trust,21/08/23,NURSE - BAND 2 - AGENCY,Maple Ward,HCL NURSING,HNSI0001428,370.67
Department of Health,Leicestershire Partnership NHS Trust,21/08/23,NURSE - BAND 5 - AGENCY,Maple Ward,HCL NURSING,HNSI0001428,2034.66
Department of Health,Leicestershire Partnership NHS Trust,21/08/23,Nurse - Band 6 -Agency,Mental Health Liaison Team,HCL NURSING,HNSI0001428,2232.30
Department of Health,Leicestershire Partnership NHS Trust,21/08/23,NURSE - BAND 2 - AGENCY,Mill Lodge,HCL NURSING,HNSI0001428,3871.91
Department of Health,Leicestershire Partnership NHS Trust,21/08/23,NURSE - BAND 5 - AGENCY,Mill Lodge,HCL NURSING,HNSI0001428,1377.65
Department of Health,Leicestershire Partnership NHS Trust,21/08/23,NURSE - BAND 2 - AGENCY,Phoenix Ward (HPC),HCL NURSING,HNSI0001428,205.84
Department of Health,Leicestershire Partnership NHS Trust,21/08/23,NURSE - BAND 5 - AGENCY,Phoenix Ward (HPC),HCL NURSING,HNSI0001428,4565.69
Department of Health,Leicestershire Partnership NHS Trust,21/08/23,NURSE - BAND 2 - AGENCY,Place Of Safety Assessment Unit,HCL NURSING,HNSI0001428,867.68
Department of Health,Leicestershire Partnership NHS Trust,21/08/23,NURSE - BAND 5 - AGENCY,Place Of Safety Assessment Unit,HCL NURSING,HNSI0001428,2591.55
Department of Health,Leicestershire Partnership NHS Trust,21/08/23,NURSE - BAND 2 - AGENCY,Stewart House,HCL NURSING,HNSI0001428,498.23
Department of Health,Leicestershire Partnership NHS Trust,21/08/23,NURSE - BAND 5 - AGENCY,Stewart House,HCL NURSING,HNSI0001428,502.45
Department of Health,Leicestershire Partnership NHS Trust,21/08/23,NURSE - BAND 2 - AGENCY,Sycamore (Willows),HCL NURSING,HNSI0001428,593.53
Department of Health,Leicestershire Partnership NHS Trust,21/08/23,NURSE - BAND 5 - AGENCY,Sycamore (Willows),HCL NURSING,HNSI0001428,930.93
Department of Health,Leicestershire Partnership NHS Trust,21/08/23,NURSE - BAND 2 - AGENCY,Thornton Ward - Bradgate Unit,HCL NURSING,HNSI0001428,763.10
Department of Health,Leicestershire Partnership NHS Trust,21/08/23,NURSE - BAND 5 - AGENCY,Thornton Ward - Bradgate Unit,HCL NURSING,HNSI0001428,413.07
Department of Health,Leicestershire Partnership NHS Trust,21/08/23,Med GP Trainees,Medical Trainees,MWL TEACHING HOSPITALS NHS TRUST,16824080,75000.00
Department of Health,Leicestershire Partnership NHS Trust,21/08/23,Crs_NHS_LT1y -Resus Inventory Supplied.,Balance Sheet Collection,SUPPLY CHAIN CO LTD,1124134710,27866.05
Department of Health,Leicestershire Partnership NHS Trust,22/08/23,Services / Recharges from NHS Trusts,Inter Unit I & E Distribution,UHL NHS TRUST (RWE),L0273169,33835.03
Department of Health,Leicestershire Partnership NHS Trust,22/08/23,Med Trainees - FY1,Medical Trainees,UHL NHS TRUST (RWE),L0273203,30397.73
Department of Health,Leicestershire Partnership NHS Trust,23/08/23,Catering - Patient - Food,"Bennion Centre (including Forest Grange Day Unit) (P8, LPT)",FRESHWAYS,W/C220823,2780.66
Department of Health,Leicestershire Partnership NHS Trust,23/08/23,Catering - Patient - Food,"Bradgate Unit (including Glenvale day Unit) (P7, LPT)",FRESHWAYS,W/C220823,7379.95
Department of Health,Leicestershire Partnership NHS Trust,23/08/23,Catering - Patient - Food,"Coalville Community Hospital (P138, LPT)",FRESHWAYS,W/C220823,2857.75
Department of Health,Leicestershire Partnership NHS Trust,23/08/23,Catering - Patient - Food,"Herschel Prins (P9, LPT)",FRESHWAYS,W/C220823,1813.76
Department of Health,Leicestershire Partnership NHS Trust,23/08/23,Catering - Patient - Food,"Hinckley and Bosworth Community Hospital (Sunnyside) (P133, LPT)",FRESHWAYS,W/C220823,2309.81
Department of Health,Leicestershire Partnership NHS Trust,23/08/23,Catering - Patient - Food,"Loughborough Hospital (P136, LPT)",FRESHWAYS,W/C220823,2903.90
Department of Health,Leicestershire Partnership NHS Trust,23/08/23,Catering - Patient - Food,"Stewart House (P61, LPT)",FRESHWAYS,W/C220823,2991.21
Department of Health,Leicestershire Partnership NHS Trust,23/08/23,Catering - Patient - Food,"The Agnes Unit (AKA Assessment and Treatment Centre) (P85, LPT)",FRESHWAYS,W/C220823,1310.64
Department of Health,Leicestershire Partnership NHS Trust,23/08/23,Catering - Patient - Food,The Beacon,FRESHWAYS,W/C220823,868.05
Department of Health,Leicestershire Partnership NHS Trust,23/08/23,Healthcare Services / Recharges from Non-NHS Bodies,CAMHS Inpatient Service,Prometheus complex care ltd,0000002511,63612.50
Department of Health,Leicestershire Partnership NHS Trust,24/08/23,Printing Costs,Estates & Facilities Central,LEXMARK INTERNATIONAL LTD,900650306389,28283.75
Department of Health,Leicestershire Partnership NHS Trust,25/08/23,FP10'S,Adult City Drugs,NHS BUS SERVICES AUTHORITY,1000078353,11242.73
Department of Health,Leicestershire Partnership NHS Trust,25/08/23,FP10'S,Adult County Drugs,NHS BUS SERVICES AUTHORITY,1000078353,18790.25
Department of Health,Leicestershire Partnership NHS Trust,25/08/23,FP10'S,CAMHS Outpatients,NHS BUS SERVICES AUTHORITY,1000078353,1934.80
Department of Health,Leicestershire Partnership NHS Trust,25/08/23,FP10'S,Dementia Related Drugs and Investigations,NHS BUS SERVICES AUTHORITY,1000078353,15789.11
Department of Health,Leicestershire Partnership NHS Trust,25/08/23,FP10'S,Eating Disorders Outpatient Service,NHS BUS SERVICES AUTHORITY,1000078353,919.81
Department of Health,Leicestershire Partnership NHS Trust,25/08/23,FP10'S,Forensic Services - Community,NHS BUS SERVICES AUTHORITY,1000078353,13625.02
Department of Health,Leicestershire Partnership NHS Trust,25/08/23,FP10'S,LOROS Pharmacy,NHS BUS SERVICES AUTHORITY,1000078353,706.61
Department of Health,Leicestershire Partnership NHS Trust,25/08/23,FP10'S,Lough Swithland Ward,NHS BUS SERVICES AUTHORITY,1000078353,45.24
Department of Health,Leicestershire Partnership NHS Trust,25/08/23,FP10'S,Mental Health Liaison Team,NHS BUS SERVICES AUTHORITY,1000078353,11.94
Department of Health,Leicestershire Partnership NHS Trust,25/08/23,FP10'S,PIER Team - Early Intervention Services,NHS BUS SERVICES AUTHORITY,1000078353,1307.34
Department of Health,Leicestershire Partnership NHS Trust,25/08/23,FP10'S,Pharmacy,NHS BUS SERVICES AUTHORITY,1000078353,83792.89
Department of Health,Leicestershire Partnership NHS Trust,25/08/23,Nurse - Band 6 -Agency,AMH - Central Access Point,HCL NURSING,HNSI0001432,1839.13
Department of Health,Leicestershire Partnership NHS Trust,25/08/23,Nurse - Band 7 - Agency,Adult County- East Leicester CMHT,HCL NURSING,HNSI0001432,1023.37
Department of Health,Leicestershire Partnership NHS Trust,25/08/23,NURSE - BAND 2 - AGENCY,Agnes Unit,HCL NURSING,HNSI0001432,24644.29
Department of Health,Leicestershire Partnership NHS Trust,25/08/23,NURSE - BAND 5 - AGENCY,Agnes Unit,HCL NURSING,HNSI0001432,22027.54
Department of Health,Leicestershire Partnership NHS Trust,25/08/23,NURSE - BAND 2 - AGENCY,Ashby Ward (Bradgate Unit),HCL NURSING,HNSI0001432,804.67
Department of Health,Leicestershire Partnership NHS Trust,25/08/23,NURSE - BAND 5 - AGENCY,Ashby Ward (Bradgate Unit),HCL NURSING,HNSI0001432,9633.45
Department of Health,Leicestershire Partnership NHS Trust,25/08/23,NURSE - BAND 2 - AGENCY,Aston Ward Bradgate Unit (Prev Welford),HCL NURSING,HNSI0001432,1951.08
Department of Health,Leicestershire Partnership NHS Trust,25/08/23,NURSE - BAND 5 - AGENCY,Aston Ward Bradgate Unit (Prev Welford),HCL NURSING,HNSI0001432,2664.05
Department of Health,Leicestershire Partnership NHS Trust,25/08/23,NURSE - BAND 2 - AGENCY,Beaumont Ward - Bradgate Unit,HCL NURSING,HNSI0001432,1036.08
Department of Health,Leicestershire Partnership NHS Trust,25/08/23,NURSE - BAND 5 - AGENCY,Beaumont Ward - Bradgate Unit,HCL NURSING,HNSI0001432,11265.33
Department of Health,Leicestershire Partnership NHS Trust,25/08/23,NURSE - BAND 2 - AGENCY,Belvoir Psychiatric Intensive Care Unit,HCL NURSING,HNSI0001432,1756.74
Department of Health,Leicestershire Partnership NHS Trust,25/08/23,NURSE - BAND 5 - AGENCY,Belvoir Psychiatric Intensive Care Unit,HCL NURSING,HNSI0001432,4700.48
Department of Health,Leicestershire Partnership NHS Trust,25/08/23,NURSE - BAND 2 - AGENCY,Bosworth Ward - Bradgate Unit,HCL NURSING,HNSI0001432,630.24
Department of Health,Leicestershire Partnership NHS Trust,25/08/23,NURSE - BAND 5 - AGENCY,Bosworth Ward - Bradgate Unit,HCL NURSING,HNSI0001432,2385.17
Department of Health,Leicestershire Partnership NHS Trust,25/08/23,NURSE - BAND 5 - AGENCY,Cedar (Willows),HCL NURSING,HNSI0001432,1773.00
Department of Health,Leicestershire Partnership NHS Trust,25/08/23,Nurse - Band 6 -Agency,City West CMHT MHSOP,HCL NURSING,HNSI0001432,1046.25
Department of Health,Leicestershire Partnership NHS Trust,25/08/23,NURSE - BAND 2 - AGENCY,Coleman Ward,HCL NURSING,HNSI0001432,738.26
Department of Health,Leicestershire Partnership NHS Trust,25/08/23,NURSE - BAND 5 - AGENCY,Coleman Ward,HCL NURSING,HNSI0001432,5903.05
Department of Health,Leicestershire Partnership NHS Trust,25/08/23,NURSE - BAND 2 - AGENCY,Griffin Ward (HPC),HCL NURSING,HNSI0001432,4181.58
Department of Health,Leicestershire Partnership NHS Trust,25/08/23,NURSE - BAND 5 - AGENCY,Griffin Ward (HPC),HCL NURSING,HNSI0001432,6559.13
Department of Health,Leicestershire Partnership NHS Trust,25/08/23,NURSE - BAND 2 - AGENCY,Gwendolen Ward,HCL NURSING,HNSI0001432,2852.29
Department of Health,Leicestershire Partnership NHS Trust,25/08/23,NURSE - BAND 5 - AGENCY,Gwendolen Ward,HCL NURSING,HNSI0001432,6478.45
Department of Health,Leicestershire Partnership NHS Trust,25/08/23,NURSE - BAND 2 - AGENCY,Heather Ward,HCL NURSING,HNSI0001432,3446.32
Department of Health,Leicestershire Partnership NHS Trust,25/08/23,NURSE - BAND 5 - AGENCY,Heather Ward,HCL NURSING,HNSI0001432,8322.93
Department of Health,Leicestershire Partnership NHS Trust,25/08/23,NURSE - BAND 2 - AGENCY,Kirby Ward,HCL NURSING,HNSI0001432,1027.81
Department of Health,Leicestershire Partnership NHS Trust,25/08/23,NURSE - BAND 5 - AGENCY,Kirby Ward,HCL NURSING,HNSI0001432,3891.41
Department of Health,Leicestershire Partnership NHS Trust,25/08/23,NURSE - BAND 2 - AGENCY,Maple Ward,HCL NURSING,HNSI0001432,205.84
Department of Health,Leicestershire Partnership NHS Trust,25/08/23,NURSE - BAND 5 - AGENCY,Maple Ward,HCL NURSING,HNSI0001432,986.91
Department of Health,Leicestershire Partnership NHS Trust,25/08/23,Nurse - Band 6 -Agency,Mental Health Liaison Team,HCL NURSING,HNSI0001432,1948.31
Department of Health,Leicestershire Partnership NHS Trust,25/08/23,NURSE - BAND 2 - AGENCY,Mill Lodge,HCL NURSING,HNSI0001432,5047.39
Department of Health,Leicestershire Partnership NHS Trust,25/08/23,NURSE - BAND 5 - AGENCY,Mill Lodge,HCL NURSING,HNSI0001432,3075.12
Department of Health,Leicestershire Partnership NHS Trust,25/08/23,NURSE - BAND 2 - AGENCY,Phoenix Ward (HPC),HCL NURSING,HNSI0001432,979.17
Department of Health,Leicestershire Partnership NHS Trust,25/08/23,NURSE - BAND 5 - AGENCY,Phoenix Ward (HPC),HCL NURSING,HNSI0001432,2928.74
Department of Health,Leicestershire Partnership NHS Trust,25/08/23,NURSE - BAND 2 - AGENCY,Place Of Safety Assessment Unit,HCL NURSING,HNSI0001432,943.03
Department of Health,Leicestershire Partnership NHS Trust,25/08/23,NURSE - BAND 5 - AGENCY,Place Of Safety Assessment Unit,HCL NURSING,HNSI0001432,4760.61
Department of Health,Leicestershire Partnership NHS Trust,25/08/23,NURSE - BAND 5 - AGENCY,Sycamore (Willows),HCL NURSING,HNSI0001432,3536.82
Department of Health,Leicestershire Partnership NHS Trust,25/08/23,NURSE - BAND 2 - AGENCY,Thornton Ward - Bradgate Unit,HCL NURSING,HNSI0001432,460.07
Department of Health,Leicestershire Partnership NHS Trust,25/08/23,NURSE - BAND 5 - AGENCY,Thornton Ward - Bradgate Unit,HCL NURSING,HNSI0001432,3189.85
Department of Health,Leicestershire Partnership NHS Trust,25/08/23,Nurse - Band 6 -Agency,CAMHS Waiting List Monies,HCL WORKFORCE SOLUTIONS,HWSI0001902,13803.75
Department of Health,Leicestershire Partnership NHS Trust,25/08/23,Nurse - Band 6 -Agency,Crisis Response and Home Treatment,HCL WORKFORCE SOLUTIONS,HWSI0001902,10715.73
Department of Health,Leicestershire Partnership NHS Trust,25/08/23,Landline Telephone Rental / Calls,"Beaumont Leys Health Centre (P94, LPT)",VIRGIN MEDIA BUSINESS,853083001/004/0823,335.70
Department of Health,Leicestershire Partnership NHS Trust,25/08/23,Landline Telephone Rental / Calls,"Bennion Centre (including Forest Grange Day Unit) (P8, LPT)",VIRGIN MEDIA BUSINESS,853083001/004/0823,8.77
Department of Health,Leicestershire Partnership NHS Trust,25/08/23,Landline Telephone Rental / Calls,"Bradgate Unit (including Glenvale day Unit) (P7, LPT)",VIRGIN MEDIA BUSINESS,853083001/004/0823,6168.47
Department of Health,Leicestershire Partnership NHS Trust,25/08/23,Landline Telephone Rental / Calls,Braunstone Health and Social Care Centre (Part) (PROPCO),VIRGIN MEDIA BUSINESS,853083001/004/0823,1148.06
Department of Health,Leicestershire Partnership NHS Trust,25/08/23,Landline Telephone Rental / Calls,Bridge Park Plaza - First Floor (LPT),VIRGIN MEDIA BUSINESS,853083001/004/0823,3063.11
Department of Health,Leicestershire Partnership NHS Trust,25/08/23,Landline Telephone Rental / Calls,"Coalville Community Hospital (P138, LPT)",VIRGIN MEDIA BUSINESS,853083001/004/0823,1405.80
Department of Health,Leicestershire Partnership NHS Trust,25/08/23,Landline Telephone Rental / Calls,"Coalville Health Centre (P121, LPT)",VIRGIN MEDIA BUSINESS,853083001/004/0823,111.40
Department of Health,Leicestershire Partnership NHS Trust,25/08/23,Landline Telephone Rental / Calls,County Hall,VIRGIN MEDIA BUSINESS,853083001/004/0823,1530.43
Department of Health,Leicestershire Partnership NHS Trust,25/08/23,Landline Telephone Rental / Calls,Estates & Facilities Central,VIRGIN MEDIA BUSINESS,853083001/004/0823,7.22
Department of Health,Leicestershire Partnership NHS Trust,25/08/23,Landline Telephone Rental / Calls,"Evington Centre (P6, LPT)",VIRGIN MEDIA BUSINESS,853083001/004/0823,204.06
Department of Health,Leicestershire Partnership NHS Trust,25/08/23,Landline Telephone Rental / Calls,HIS,VIRGIN MEDIA BUSINESS,853083001/004/0823,2867.44
Department of Health,Leicestershire Partnership NHS Trust,25/08/23,Landline Telephone Rental / Calls,"Hawthorne Centre - Coalville (P14, LPT)",VIRGIN MEDIA BUSINESS,853083001/004/0823,474.92
Department of Health,Leicestershire Partnership NHS Trust,25/08/23,Landline Telephone Rental / Calls,"Hinckley and Bosworth Community Hospital (Sunnyside) (P133, LPT)",VIRGIN MEDIA BUSINESS,853083001/004/0823,956.42
Department of Health,Leicestershire Partnership NHS Trust,25/08/23,Landline Telephone Rental / Calls,"Hynca Lodge (P33, LPT)",VIRGIN MEDIA BUSINESS,853083001/004/0823,412.16
Department of Health,Leicestershire Partnership NHS Trust,25/08/23,Landline Telephone Rental / Calls,"Legion House, Ashby",VIRGIN MEDIA BUSINESS,853083001/004/0823,23.17
Department of Health,Leicestershire Partnership NHS Trust,25/08/23,Landline Telephone Rental / Calls,"Loughborough Hospital (P136, LPT)",VIRGIN MEDIA BUSINESS,853083001/004/0823,4492.21
Department of Health,Leicestershire Partnership NHS Trust,25/08/23,Landline Telephone Rental / Calls,Mawson House (LPT),VIRGIN MEDIA BUSINESS,853083001/004/0823,433.50
Department of Health,Leicestershire Partnership NHS Trust,25/08/23,Landline Telephone Rental / Calls,Merlyn Vaz Centre (CHP),VIRGIN MEDIA BUSINESS,853083001/004/0823,1499.04
Department of Health,Leicestershire Partnership NHS Trust,25/08/23,Landline Telephone Rental / Calls,"Mett Centre (P49, LPT)",VIRGIN MEDIA BUSINESS,853083001/004/0823,107.63
Department of Health,Leicestershire Partnership NHS Trust,25/08/23,Landline Telephone Rental / Calls,NSPCC Training Cente,VIRGIN MEDIA BUSINESS,853083001/004/0823,159.96
Department of Health,Leicestershire Partnership NHS Trust,25/08/23,Landline Telephone Rental / Calls,New Parks Health Centre (PROPCO),VIRGIN MEDIA BUSINESS,853083001/004/0823,1520.28
Department of Health,Leicestershire Partnership NHS Trust,25/08/23,Landline Telephone Rental / Calls,"OSL House (P54, LPT)",VIRGIN MEDIA BUSINESS,853083001/004/0823,917.64
Department of Health,Leicestershire Partnership NHS Trust,25/08/23,Landline Telephone Rental / Calls,"Orchard Resource Centre (P15, LPT)",VIRGIN MEDIA BUSINESS,853083001/004/0823,560.72
Department of Health,Leicestershire Partnership NHS Trust,25/08/23,Landline Telephone Rental / Calls,Pasley Road Health Centre (PROPCO),VIRGIN MEDIA BUSINESS,853083001/004/0823,138.77
Department of Health,Leicestershire Partnership NHS Trust,25/08/23,Landline Telephone Rental / Calls,"Prince Philip House (P96, LPT)",VIRGIN MEDIA BUSINESS,853083001/004/0823,1198.42
Department of Health,Leicestershire Partnership NHS Trust,25/08/23,Landline Telephone Rental / Calls,Rushey Mead Health Centre (PROPCO),VIRGIN MEDIA BUSINESS,853083001/004/0823,74.26
Department of Health,Leicestershire Partnership NHS Trust,25/08/23,Landline Telephone Rental / Calls,"Springfield Road Health Centre (P92, LPT)",VIRGIN MEDIA BUSINESS,853083001/004/0823,363.90
Department of Health,Leicestershire Partnership NHS Trust,25/08/23,Landline Telephone Rental / Calls,"St Peters Health Center (Part 1st and 2nd floors) (P66, LPT)",VIRGIN MEDIA BUSINESS,853083001/004/0823,1615.26
Department of Health,Leicestershire Partnership NHS Trust,25/08/23,Landline Telephone Rental / Calls,"Swithland House - London Road 352 (P44, LPT)",VIRGIN MEDIA BUSINESS,853083001/004/0823,253.20
Department of Health,Leicestershire Partnership NHS Trust,25/08/23,Landline Telephone Rental / Calls,"The Cedars (P19, LPT)",VIRGIN MEDIA BUSINESS,853083001/004/0823,701.24
Department of Health,Leicestershire Partnership NHS Trust,25/08/23,Landline Telephone Rental / Calls,"The Willows - Cordelia Close (P22, LPT)",VIRGIN MEDIA BUSINESS,853083001/004/0823,458.92
Department of Health,Leicestershire Partnership NHS Trust,25/08/23,Landline Telephone Rental / Calls,"Valentine Centre (P3, LPT)",VIRGIN MEDIA BUSINESS,853083001/004/0823,566.18
Department of Health,Leicestershire Partnership NHS Trust,25/08/23,Landline Telephone Rental / Calls,Warren Park Way 25 (PROPCO),VIRGIN MEDIA BUSINESS,853083001/004/0823,792.05
Department of Health,Leicestershire Partnership NHS Trust,25/08/23,Landline Telephone Rental / Calls,"Westcotes Group -Westcotes House (P78, LPT)",VIRGIN MEDIA BUSINESS,853083001/004/0823,823.76
Department of Health,Leicestershire Partnership NHS Trust,25/08/23,Landline Telephone Rental / Calls,"Winstanley Drive Health Centre (P8, LPT)",VIRGIN MEDIA BUSINESS,853083001/004/0823,46.44
Department of Health,Leicestershire Partnership NHS Trust,29/08/23,CHP Estates Management,Merlyn Vaz Centre (CHP),COMM HLTH PARTNERSHIPS LTD,0060309111,86705.26
Department of Health,Leicestershire Partnership NHS Trust,29/08/23,Telephone equipment,Bridge Park Plaza - First Floor (LPT),VIRGIN MEDIA BUSINESS,60051036,30780.41
Department of Health,Leicestershire Partnership NHS Trust,29/08/23,Lease Rents (IFRS16),"OSL House (P54, LPT)",CABOT TRUSTEES LTD,074,41700.00
Department of Health,Leicestershire Partnership NHS Trust,29/08/23,Services / Recharges from NHS Trusts,Inter Unit I & E Distribution,UHL NHS TRUST (RWE),L0273357,93376.76
Department of Health,Leicestershire Partnership NHS Trust,30/08/23,NURSE - BAND 2 - AGENCY,Beechwood Ward,HCL NURSING,HNSI0001433,7382.27
Department of Health,Leicestershire Partnership NHS Trust,30/08/23,NURSE - BAND 5 - AGENCY,Beechwood Ward,HCL NURSING,HNSI0001433,3275.74
Department of Health,Leicestershire Partnership NHS Trust,30/08/23,NURSE - BAND 2 - AGENCY,CHS Surge Ward,HCL NURSING,HNSI0001433,8205.82
Department of Health,Leicestershire Partnership NHS Trust,30/08/23,NURSE - BAND 5 - AGENCY,CHS Surge Ward,HCL NURSING,HNSI0001433,6565.90
Department of Health,Leicestershire Partnership NHS Trust,30/08/23,NURSE - BAND 5 - AGENCY,City Planned Care - East,HCL NURSING,HNSI0001433,16330.91
Department of Health,Leicestershire Partnership NHS Trust,30/08/23,NURSE - BAND 5 - AGENCY,City Planned Care - West,HCL NURSING,HNSI0001433,23503.13
Department of Health,Leicestershire Partnership NHS Trust,30/08/23,NURSE - BAND 2 - AGENCY,Clarendon Ward,HCL NURSING,HNSI0001433,5358.38
Department of Health,Leicestershire Partnership NHS Trust,30/08/23,NURSE - BAND 5 - AGENCY,Clarendon Ward,HCL NURSING,HNSI0001433,3745.87
Department of Health,Leicestershire Partnership NHS Trust,30/08/23,NURSE - BAND 2 - AGENCY,Coalville Snibston Ward,HCL NURSING,HNSI0001433,8378.58
Department of Health,Leicestershire Partnership NHS Trust,30/08/23,NURSE - BAND 5 - AGENCY,Coalville Snibston Ward,HCL NURSING,HNSI0001433,6585.75
Department of Health,Leicestershire Partnership NHS Trust,30/08/23,NURSE - BAND 2 - AGENCY,Coalville Ward 2,HCL NURSING,HNSI0001433,5049.81
Department of Health,Leicestershire Partnership NHS Trust,30/08/23,NURSE - BAND 5 - AGENCY,Coalville Ward 2,HCL NURSING,HNSI0001433,4206.25
Department of Health,Leicestershire Partnership NHS Trust,30/08/23,NURSE - BAND 2 - AGENCY,Dalgliesh Ward,HCL NURSING,HNSI0001433,5783.80
Department of Health,Leicestershire Partnership NHS Trust,30/08/23,NURSE - BAND 5 - AGENCY,Dalgliesh Ward,HCL NURSING,HNSI0001433,4849.84
Department of Health,Leicestershire Partnership NHS Trust,30/08/23,NURSE - BAND 5 - AGENCY,"East Planned Care - Melton,Syston,Rutland",HCL NURSING,HNSI0001433,1342.48
Department of Health,Leicestershire Partnership NHS Trust,30/08/23,NURSE - BAND 2 - AGENCY,H&B Comm Hosp East Ward,HCL NURSING,HNSI0001433,9663.47
Department of Health,Leicestershire Partnership NHS Trust,30/08/23,NURSE - BAND 5 - AGENCY,H&B Comm Hosp East Ward,HCL NURSING,HNSI0001433,10014.18
Department of Health,Leicestershire Partnership NHS Trust,30/08/23,NURSE - BAND 2 - AGENCY,H&B Comm Hosp North Ward,HCL NURSING,HNSI0001433,1737.02
Department of Health,Leicestershire Partnership NHS Trust,30/08/23,NURSE - BAND 5 - AGENCY,H&B Comm Hosp North Ward,HCL NURSING,HNSI0001433,3555.58
Department of Health,Leicestershire Partnership NHS Trust,30/08/23,NURSE - BAND 2 - AGENCY,Lough Swithland Ward,HCL NURSING,HNSI0001433,5344.45
Department of Health,Leicestershire Partnership NHS Trust,30/08/23,NURSE - BAND 5 - AGENCY,Lough Swithland Ward,HCL NURSING,HNSI0001433,4529.72
Department of Health,Leicestershire Partnership NHS Trust,30/08/23,NURSE - BAND 2 - AGENCY,Rutland Ward Nursing,HCL NURSING,HNSI0001433,4779.61
Department of Health,Leicestershire Partnership NHS Trust,30/08/23,NURSE - BAND 5 - AGENCY,Rutland Ward Nursing,HCL NURSING,HNSI0001433,7080.52
Department of Health,Leicestershire Partnership NHS Trust,30/08/23,NURSE - BAND 2 - AGENCY,St Lukes Stroke Ward,HCL NURSING,HNSI0001433,4124.61
Department of Health,Leicestershire Partnership NHS Trust,30/08/23,NURSE - BAND 5 - AGENCY,St Lukes Stroke Ward,HCL NURSING,HNSI0001433,2082.08
Department of Health,Leicestershire Partnership NHS Trust,30/08/23,NURSE - BAND 2 - AGENCY,St Lukes Ward 3,HCL NURSING,HNSI0001433,2015.79
Department of Health,Leicestershire Partnership NHS Trust,30/08/23,NURSE - BAND 5 - AGENCY,St Lukes Ward 3,HCL NURSING,HNSI0001433,3132.07
Department of Health,Leicestershire Partnership NHS Trust,30/08/23,NURSE - BAND 5 - AGENCY,West Planned Care  - Charnwood Hub,HCL NURSING,HNSI0001433,1926.48
Department of Health,Leicestershire Partnership NHS Trust,30/08/23,NURSE - BAND 5 - AGENCY,West Planned Care  - Hinckley Hub,HCL NURSING,HNSI0001433,2793.15
Department of Health,Leicestershire Partnership NHS Trust,30/08/23,Lease Rents (IFRS16),Bridge Park Plaza - First Floor (LPT),FISHER HARG PROCT LTD,865300,80507.52
